[Event "Early-Titled-Tuesday-Blitz-June-18-2024"]
[Site "Chess.com"]
[Date "2024.06.18"]
[Round "5"]
[White "Revan_2002"]
[Black "Vladimir_Zakhartsov"]
[Result "0-1"]
[WhiteElo "2733"]
[BlackElo "2908"]
[TimeControl "180+1"]
[EndTime "8:58:49 PDT"]
[Termination "Vladimir_Zakhartsov won by resignation"]

1. d4 {[%clk 0:03:00.5]} 1... Nf6 {[%clk 0:02:59.5]} 2. c4 {[%clk 0:02:59]} 2...
e6 {[%clk 0:02:59.6]} 3. Nf3 {[%clk 0:02:58.9]} 3... c5 {[%clk 0:02:59.3]} 4. d5
{[%clk 0:02:58.1]} 4... exd5 {[%clk 0:02:59.5]} 5. cxd5 {[%clk 0:02:57.9]} 5...
b5 {[%clk 0:02:59.5]} 6. Bg5 {[%clk 0:02:53.7]} 6... d6 {[%clk 0:02:57.9]} 7. e4
{[%clk 0:02:45.9]} 7... a6 {[%clk 0:02:56.8]} 8. a4 {[%clk 0:02:44.5]} 8... Be7
{[%clk 0:02:55.3]} 9. Bxf6 {[%clk 0:02:41.3]} 9... Bxf6 {[%clk 0:02:56.2]} 10.
axb5 {[%clk 0:02:41.4]} 10... Bxb2 {[%clk 0:02:52.8]} 11. Ra2 {[%clk 0:02:41.6]}
11... Bf6 {[%clk 0:02:51.4]} 12. Nbd2 {[%clk 0:02:38.7]} 12... O-O {[%clk
0:02:46.5]} 13. Bd3 {[%clk 0:02:30.4]} 13... Bb7 {[%clk 0:02:44.5]} 14. O-O
{[%clk 0:02:29.7]} 14... axb5 {[%clk 0:02:42.1]} 15. Rxa8 {[%clk 0:02:27.5]}
15... Bxa8 {[%clk 0:02:43]} 16. Bxb5 {[%clk 0:02:28.1]} 16... Nd7 {[%clk
0:02:35.1]} 17. Qa4 {[%clk 0:02:23.9]} 17... Nb6 {[%clk 0:02:32.9]} 18. Qa5
{[%clk 0:02:23.2]} 18... Qc7 {[%clk 0:02:28.8]} 19. Nc4 {[%clk 0:01:20.6]} 19...
Rb8 {[%clk 0:02:28]} 20. Nxb6 {[%clk 0:01:00.6]} 20... Qxb6 {[%clk 0:01:59.7]}
21. Qxb6 {[%clk 0:01:00.1]} 21... Rxb6 {[%clk 0:01:44]} 22. Rb1 {[%clk
0:01:00.4]} 22... Bc3 {[%clk 0:01:38.9]} 23. Bd3 {[%clk 0:00:40]} 23... Rb4
{[%clk 0:01:17.9]} 24. Rxb4 {[%clk 0:00:15.9]} 24... cxb4 {[%clk 0:01:18.8]} 25.
Bc4 {[%clk 0:00:16.5]} 25... h6 {[%clk 0:01:11.3]} 26. Kf1 {[%clk 0:00:16.9]}
26... g6 {[%clk 0:01:10.8]} 27. Ke2 {[%clk 0:00:16.9]} 27... Kg7 {[%clk
0:01:09.5]} 28. Kd3 {[%clk 0:00:17]} 28... Bb7 {[%clk 0:01:07.7]} 29. Nd4 {[%clk
0:00:16.9]} 29... Bxd4 {[%clk 0:00:50.7]} 30. Kxd4 {[%clk 0:00:17.8]} 30... f5
{[%clk 0:00:51.1]} 31. exf5 {[%clk 0:00:07.2]} 31... gxf5 {[%clk 0:00:52]} 32.
f4 {[%clk 0:00:08]} 32... Kf6 {[%clk 0:00:51.6]} 33. g3 {[%clk 0:00:07.5]} 33...
Bc8 {[%clk 0:00:51.3]} 34. Bb5 {[%clk 0:00:07.2]} 34... Bb7 {[%clk 0:00:49.6]}
35. Kc4 {[%clk 0:00:07.2]} 35... b3 {[%clk 0:00:49.5]} 36. Kxb3 {[%clk 0:00:05]}
36... Bxd5+ {[%clk 0:00:49.3]} 37. Kc3 {[%clk 0:00:05.9]} 37... Bf3 {[%clk
0:00:47.6]} 38. Kd4 {[%clk 0:00:06.2]} 38... Be4 {[%clk 0:00:46.9]} 39. Bd3
{[%clk 0:00:05.4]} 39... Bxd3 {[%clk 0:00:36.2]} 40. Kxd3 {[%clk 0:00:06.3]}
40... Ke6 {[%clk 0:00:36.8]} 41. Kd4 {[%clk 0:00:06]} 41... Ke7 {[%clk
0:00:36.5]} 42. Kc4 {[%clk 0:00:04.9]} 42... Kd8 {[%clk 0:00:35]} 43. Kd4 {[%clk
0:00:04.4]} 43... Kc7 {[%clk 0:00:34.5]} 44. Kc4 {[%clk 0:00:03.6]} 44... Kc6
{[%clk 0:00:33.9]} 45. Kd4 {[%clk 0:00:03.9]} 45... h5 {[%clk 0:00:28.1]} 46. h3
{[%clk 0:00:02.2]} 46... d5 {[%clk 0:00:15.3]} 47. g4 {[%clk 0:00:01]} 47...
hxg4 {[%clk 0:00:14.7]} 48. hxg4 {[%clk 0:00:01.5]} 48... fxg4 {[%clk
0:00:14.9]} 49. f5 {[%clk 0:00:02.4]} 49... Kd6 {[%clk 0:00:15]} 0-1

[Event "Early-Titled-Tuesday-Blitz-June-18-2024"]
[Site "Chess.com"]
[Date "2024.06.18"]
[Round "5"]
[White "DenishevM"]
[Black "Eagle_2019"]
[Result "0-1"]
[WhiteElo "2648"]
[BlackElo "2859"]
[TimeControl "180+1"]
[EndTime "8:58:49 PDT"]
[Termination "Eagle_2019 won by checkmate"]

1. Nf3 {[%clk 0:02:52.6]} 1... d5 {[%clk 0:02:59.7]} 2. b3 {[%clk 0:02:52.8]}
2... Nc6 {[%clk 0:02:59.4]} 3. Bb2 {[%clk 0:02:53.4]} 3... Bg4 {[%clk
0:02:59.1]} 4. e3 {[%clk 0:02:53.7]} 4... e5 {[%clk 0:02:59.2]} 5. Be2 {[%clk
0:02:54.1]} 5... e4 {[%clk 0:02:59.2]} 6. Nd4 {[%clk 0:02:54]} 6... Bxe2 {[%clk
0:02:59.3]} 7. Nxe2 {[%clk 0:02:53.8]} 7... Nf6 {[%clk 0:02:58.7]} 8. d3 {[%clk
0:02:51.9]} 8... Bd6 {[%clk 0:02:58]} 9. Nd2 {[%clk 0:02:51.1]} 9... Qe7 {[%clk
0:02:57.4]} 10. Ng3 {[%clk 0:02:50.4]} 10... Qe6 {[%clk 0:02:36.8]} 11. dxe4
{[%clk 0:02:46.4]} 11... Nxe4 {[%clk 0:02:33.7]} 12. Ngxe4 {[%clk 0:02:27.5]}
12... dxe4 {[%clk 0:02:33.6]} 13. O-O {[%clk 0:02:21]} 13... O-O-O {[%clk
0:02:32.3]} 14. Qe2 {[%clk 0:02:20.6]} 14... Bxh2+ {[%clk 0:02:16.9]} 15. Kxh2
{[%clk 0:02:00.3]} 15... Qd6+ {[%clk 0:02:16.2]} 16. Kg1 {[%clk 0:01:59.1]}
16... Qxd2 {[%clk 0:02:15.9]} 17. Qg4+ {[%clk 0:01:55.7]} 17... Kb8 {[%clk
0:02:12.8]} 18. Qxe4 {[%clk 0:01:52.3]} 18... f6 {[%clk 0:02:03.1]} 19. a4
{[%clk 0:01:41]} 19... Rde8 {[%clk 0:01:57.9]} 20. Qc4 {[%clk 0:01:40.8]} 20...
Qd6 {[%clk 0:01:49]} 21. Rad1 {[%clk 0:01:39.6]} 21... Qe7 {[%clk 0:01:48.6]}
22. Rd5 {[%clk 0:01:38.1]} 22... h5 {[%clk 0:01:45.5]} 23. Rfd1 {[%clk
0:01:36.9]} 23... Rd8 {[%clk 0:01:38.5]} 24. a5 {[%clk 0:01:35]} 24... Nxa5
{[%clk 0:01:33.4]} 25. Qf4 {[%clk 0:01:31.7]} 25... Nc6 {[%clk 0:01:30]} 26. c4
{[%clk 0:01:29]} 26... a6 {[%clk 0:01:22.8]} 27. Bc3 {[%clk 0:01:26.4]} 27... h4
{[%clk 0:01:15.4]} 28. b4 {[%clk 0:01:23.2]} 28... Rxd5 {[%clk 0:00:59.6]} 29.
cxd5 {[%clk 0:01:24.1]} 29... Ne5 {[%clk 0:00:57.8]} 30. b5 {[%clk 0:01:11.7]}
30... axb5 {[%clk 0:00:46.2]} 31. d6 {[%clk 0:01:12]} 31... cxd6 {[%clk
0:00:45]} 32. Bb4 {[%clk 0:01:12.5]} 32... Nc4 {[%clk 0:00:39.3]} 33. Rd5 {[%clk
0:01:06.2]} 33... Qd7 {[%clk 0:00:32]} 34. Qd4 {[%clk 0:00:50.8]} 34... h3
{[%clk 0:00:27.8]} 35. Bxd6+ {[%clk 0:00:43.6]} 35... Nxd6 {[%clk 0:00:26]} 36.
Rxd6 {[%clk 0:00:44.5]} 36... Qc7 {[%clk 0:00:26.3]} 37. gxh3 {[%clk 0:00:41.1]}
37... Rc8 {[%clk 0:00:22.9]} 38. Rd7 {[%clk 0:00:36.7]} 38... Qc1+ {[%clk
0:00:19.4]} 39. Kh2 {[%clk 0:00:36.6]} 39... Qc5 {[%clk 0:00:15.7]} 40. Qd3
{[%clk 0:00:27.6]} 40... Qe5+ {[%clk 0:00:15.3]} 41. f4 {[%clk 0:00:26.5]} 41...
Qb2+ {[%clk 0:00:13.7]} 42. Kg3 {[%clk 0:00:26]} 42... Qb4 {[%clk 0:00:11.9]}
43. Qd5 {[%clk 0:00:22]} 43... Qe1+ {[%clk 0:00:10.3]} 44. Kg4 {[%clk 0:00:22]}
44... Qe2+ {[%clk 0:00:07.5]} 45. Kf5 {[%clk 0:00:14.9]} 45... Qh5+ {[%clk
0:00:07.4]} 46. Ke6 {[%clk 0:00:13.9]} 46... Qe8+ {[%clk 0:00:05.8]} 47. Kf5
{[%clk 0:00:08.8]} 47... Qh5+ {[%clk 0:00:04]} 48. Ke4 {[%clk 0:00:09.3]} 48...
Rc4+ {[%clk 0:00:03.6]} 49. Kd3 {[%clk 0:00:03.1]} 49... Qd1# {[%clk 0:00:03.6]}
0-1

[Event "Early-Titled-Tuesday-Blitz-June-18-2024"]
[Site "Chess.com"]
[Date "2024.06.18"]
[Round "5"]
[White "SicilianPanzer"]
[Black "Oleg_Papayan"]
[Result "0-1"]
[WhiteElo "2336"]
[BlackElo "2569"]
[TimeControl "180+1"]
[EndTime "8:58:49 PDT"]
[Termination "Oleg_Papayan won by checkmate"]

1. d4 {[%clk 0:02:59.3]} 1... d5 {[%clk 0:03:00.3]} 2. c3 {[%clk 0:02:58.8]}
2... Nf6 {[%clk 0:02:59]} 3. Nf3 {[%clk 0:02:54.1]} 3... e6 {[%clk 0:02:55.1]}
4. Bf4 {[%clk 0:02:50.5]} 4... c5 {[%clk 0:02:55.1]} 5. e3 {[%clk 0:02:49.6]}
5... Qb6 {[%clk 0:02:54.4]} 6. Qb3 {[%clk 0:02:47.8]} 6... c4 {[%clk 0:02:53.8]}
7. Qc2 {[%clk 0:02:44.6]} 7... Nc6 {[%clk 0:02:53.8]} 8. Nbd2 {[%clk 0:02:41.8]}
8... Nh5 {[%clk 0:02:52.9]} 9. Bg3 {[%clk 0:02:13.4]} 9... Nxg3 {[%clk
0:02:45.6]} 10. hxg3 {[%clk 0:02:12.2]} 10... g6 {[%clk 0:02:44.7]} 11. b3
{[%clk 0:01:55.3]} 11... cxb3 {[%clk 0:02:42.2]} 12. axb3 {[%clk 0:01:54.7]}
12... Bg7 {[%clk 0:02:41.9]} 13. Be2 {[%clk 0:01:49.7]} 13... Bd7 {[%clk
0:02:35.5]} 14. O-O {[%clk 0:01:42.9]} 14... Rc8 {[%clk 0:02:33.8]} 15. Qb2
{[%clk 0:01:20.7]} 15... O-O {[%clk 0:02:13.3]} 16. e4 {[%clk 0:01:04.5]} 16...
dxe4 {[%clk 0:01:59.7]} 17. Nxe4 {[%clk 0:01:04.5]} 17... e5 {[%clk 0:01:44.5]}
18. d5 {[%clk 0:00:33]} 18... Ne7 {[%clk 0:01:44.6]} 19. c4 {[%clk 0:00:32]}
19... f5 {[%clk 0:01:44.8]} 20. Nc3 {[%clk 0:00:31.1]} 20... e4 {[%clk
0:01:44.4]} 21. Ng5 {[%clk 0:00:26]} 21... Nxd5 {[%clk 0:01:27.4]} 22. Nxd5
{[%clk 0:00:18.9]} 22... Bxb2 {[%clk 0:01:28.3]} 23. Nxb6 {[%clk 0:00:19.1]}
23... axb6 {[%clk 0:01:29.2]} 24. Rab1 {[%clk 0:00:16.9]} 24... Bf6 {[%clk
0:01:27.5]} 25. Rfd1 {[%clk 0:00:17.3]} 25... Rfd8 {[%clk 0:01:19]} 26. Nh3
{[%clk 0:00:17.3]} 26... g5 {[%clk 0:01:11.8]} 27. Rd6 {[%clk 0:00:17.5]} 27...
Be7 {[%clk 0:00:54.3]} 28. Rxb6 {[%clk 0:00:16.7]} 28... Bc6 {[%clk 0:00:54.9]}
29. b4 {[%clk 0:00:15]} 29... Rd2 {[%clk 0:00:55.4]} 30. b5 {[%clk 0:00:13.5]}
30... Bc5 {[%clk 0:00:42.5]} 31. bxc6 {[%clk 0:00:13.6]} 31... Bxb6 {[%clk
0:00:43.1]} 32. cxb7 {[%clk 0:00:14.3]} 32... Rb8 {[%clk 0:00:43.1]} 33. Bd1
{[%clk 0:00:08.6]} 33... Rxb7 {[%clk 0:00:21.3]} 34. c5 {[%clk 0:00:08.2]} 34...
Bxc5 {[%clk 0:00:12.3]} 35. Rxb7 {[%clk 0:00:07.5]} 35... Rxd1+ {[%clk 0:00:13]}
36. Kh2 {[%clk 0:00:07.6]} 36... h6 {[%clk 0:00:12.5]} 37. Rc7 {[%clk
0:00:08.1]} 37... Bd6 {[%clk 0:00:09.6]} 38. Rc6 {[%clk 0:00:07]} 38... Kg7
{[%clk 0:00:09.4]} 39. Ng1 {[%clk 0:00:07.3]} 39... Rd2 {[%clk 0:00:07.2]} 40.
Ra6 {[%clk 0:00:03.7]} 40... Bc5 {[%clk 0:00:05.5]} 41. Nh3 {[%clk 0:00:02.7]}
41... Bxf2 {[%clk 0:00:05]} 42. Nxf2 {[%clk 0:00:02.8]} 42... Rxf2 {[%clk
0:00:05.1]} 43. Ra7+ {[%clk 0:00:03]} 43... Kg6 {[%clk 0:00:05.3]} 44. g4 {[%clk
0:00:03.4]} 44... f4 {[%clk 0:00:04.1]} 45. Ra6+ {[%clk 0:00:03.6]} 45... Kg7
{[%clk 0:00:04]} 46. Ra7+ {[%clk 0:00:04.5]} 46... Kf8 {[%clk 0:00:04.5]} 47.
Ra8+ {[%clk 0:00:04.7]} 47... Ke7 {[%clk 0:00:05]} 48. Rh8 {[%clk 0:00:04.8]}
48... e3 {[%clk 0:00:04.9]} 49. Kg1 {[%clk 0:00:03.9]} 49... Rc2 {[%clk
0:00:05.1]} 50. Kf1 {[%clk 0:00:04.1]} 50... Rc1+ {[%clk 0:00:04.4]} 51. Ke2
{[%clk 0:00:04]} 51... Rg1 {[%clk 0:00:05.1]} 52. Kf3 {[%clk 0:00:04.1]} 52...
Rf1+ {[%clk 0:00:05.4]} 53. Ke2 {[%clk 0:00:03.9]} 53... Rf2+ {[%clk 0:00:06]}
54. Ke1 {[%clk 0:00:04.4]} 54... Rxg2 {[%clk 0:00:06.9]} 55. Rxh6 {[%clk
0:00:04.7]} 55... f3 {[%clk 0:00:07.2]} 56. Rg6 {[%clk 0:00:04.4]} 56... Rg1#
{[%clk 0:00:07.5]} 0-1

[Event "Early-Titled-Tuesday-Blitz-June-18-2024"]
[Site "Chess.com"]
[Date "2024.06.18"]
[Round "5"]
[White "FARIZA2018"]
[Black "HelenaWalker2912"]
[Result "1-0"]
[WhiteElo "2600"]
[BlackElo "2414"]
[TimeControl "180+1"]
[EndTime "8:58:50 PDT"]
[Termination "FARIZA2018 won on time"]

1. e4 {[%clk 0:03:00.9]} 1... c6 {[%clk 0:02:53.1]} 2. d4 {[%clk 0:03:00.3]}
2... d5 {[%clk 0:02:53.2]} 3. Nc3 {[%clk 0:02:59.8]} 3... dxe4 {[%clk
0:02:53.5]} 4. Nxe4 {[%clk 0:03:00.1]} 4... Nf6 {[%clk 0:02:54]} 5. Qd3 {[%clk
0:02:59.7]} 5... g6 {[%clk 0:02:44.6]} 6. Nxf6+ {[%clk 0:02:54.5]} 6... exf6
{[%clk 0:02:45.5]} 7. Nf3 {[%clk 0:02:54.3]} 7... Na6 {[%clk 0:02:43.5]} 8. a3
{[%clk 0:02:44.1]} 8... Bd6 {[%clk 0:02:42.3]} 9. Be2 {[%clk 0:02:43.4]} 9...
O-O {[%clk 0:02:39.8]} 10. Be3 {[%clk 0:02:34.6]} 10... Re8 {[%clk 0:02:29.3]}
11. h4 {[%clk 0:02:30.4]} 11... h5 {[%clk 0:02:25.6]} 12. O-O-O {[%clk
0:02:29.3]} 12... Bf5 {[%clk 0:02:21.3]} 13. Qd2 {[%clk 0:02:29.3]} 13... Nc7
{[%clk 0:02:19.7]} 14. Bd3 {[%clk 0:02:09.4]} 14... Bg4 {[%clk 0:01:56.9]} 15.
Rde1 {[%clk 0:02:03.3]} 15... Nd5 {[%clk 0:01:52.5]} 16. Nh2 {[%clk 0:01:59]}
16... Qd7 {[%clk 0:01:34.4]} 17. Nxg4 {[%clk 0:01:40.6]} 17... Qxg4 {[%clk
0:01:35.3]} 18. Be2 {[%clk 0:01:19.4]} 18... Qf5 {[%clk 0:01:10]} 19. Bf3 {[%clk
0:01:08]} 19... Nxe3 {[%clk 0:01:05]} 20. fxe3 {[%clk 0:01:08.2]} 20... Rad8
{[%clk 0:01:02.4]} 21. Kb1 {[%clk 0:00:50.4]} 21... c5 {[%clk 0:00:56.6]} 22. d5
{[%clk 0:00:49.8]} 22... b5 {[%clk 0:00:38]} 23. Qe2 {[%clk 0:00:41.5]} 23...
Bg3 {[%clk 0:00:36.4]} 24. Ref1 {[%clk 0:00:41.3]} 24... Qe5 {[%clk 0:00:34.7]}
25. e4 {[%clk 0:00:36.2]} 25... f5 {[%clk 0:00:32.2]} 26. Qd3 {[%clk 0:00:12.8]}
26... c4 {[%clk 0:00:27.8]} 27. Qe3 {[%clk 0:00:07]} 27... fxe4 {[%clk
0:00:23.5]} 28. Be2 {[%clk 0:00:05.5]} 28... Rxd5 {[%clk 0:00:19.1]} 29. Rh3
{[%clk 0:00:05.8]} 29... Bh2 {[%clk 0:00:05.3]} 30. g3 {[%clk 0:00:05.9]} 30...
Qd4 {[%clk 0:00:03.5]} 31. Qxd4 {[%clk 0:00:05.8]} 31... Rxd4 {[%clk 0:00:04.4]}
32. Rxh2 {[%clk 0:00:06.5]} 32... f5 {[%clk 0:00:04.7]} 33. Rhf2 {[%clk
0:00:06.9]} 33... Kg7 {[%clk 0:00:04.7]} 34. Kc1 {[%clk 0:00:07.4]} 34... Red8
{[%clk 0:00:04.7]} 35. Bd1 {[%clk 0:00:06.9]} 35... Kf6 {[%clk 0:00:04]} 36. c3
{[%clk 0:00:07.2]} 36... Rd3 {[%clk 0:00:03.7]} 37. Bc2 {[%clk 0:00:07.2]} 37...
Re3 {[%clk 0:00:02.7]} 38. Rf4 {[%clk 0:00:04.3]} 38... Rxg3 {[%clk 0:00:02.7]}
39. Bxe4 {[%clk 0:00:04.2]} 39... Ke5 {[%clk 0:00:03.2]} 40. Bc2 {[%clk
0:00:03.9]} 40... Rg4 {[%clk 0:00:02.9]} 41. Rxg4 {[%clk 0:00:03.8]} 41... hxg4
{[%clk 0:00:03.8]} 42. h5 {[%clk 0:00:03.4]} 42... Rf8 {[%clk 0:00:01.9]} 43.
hxg6 {[%clk 0:00:03.6]} 43... f4 {[%clk 0:00:02.2]} 44. g7 {[%clk 0:00:04]}
44... Rg8 {[%clk 0:00:02.6]} 45. Re1+ {[%clk 0:00:03.7]} 45... Kf6 {[%clk
0:00:02.9]} 46. Re4 {[%clk 0:00:04.1]} 46... Kg5 {[%clk 0:00:02.1]} 47. Re5+
{[%clk 0:00:04.5]} 47... Kh4 {[%clk 0:00:02.3]} 48. Rf5 {[%clk 0:00:04.5]} 48...
f3 {[%clk 0:00:02.2]} 49. Rf7 {[%clk 0:00:04.9]} 49... Kg3 {[%clk 0:00:01.1]}
50. Bh7 {[%clk 0:00:05.4]} 1-0

[Event "Early-Titled-Tuesday-Blitz-June-18-2024"]
[Site "Chess.com"]
[Date "2024.06.18"]
[Round "5"]
[White "FredddieCroderg"]
[Black "Nadtkins"]
[Result "1-0"]
[WhiteElo "2329"]
[BlackElo "2545"]
[TimeControl "180+1"]
[EndTime "8:58:50 PDT"]
[Termination "FredddieCroderg won on time"]

1. e4 {[%clk 0:02:59.2]} 1... c5 {[%clk 0:02:58.3]} 2. Bc4 {[%clk 0:02:58.2]}
2... e6 {[%clk 0:02:57.9]} 3. Qf3 {[%clk 0:02:56.9]} 3... Nc6 {[%clk 0:02:55.7]}
4. d3 {[%clk 0:02:51.9]} 4... a6 {[%clk 0:02:54.8]} 5. Nc3 {[%clk 0:02:50.3]}
5... b5 {[%clk 0:02:54.4]} 6. Bb3 {[%clk 0:02:49.7]} 6... Bb7 {[%clk 0:02:53]}
7. Nge2 {[%clk 0:02:44.4]} 7... Qc7 {[%clk 0:02:52.4]} 8. Bf4 {[%clk 0:02:41.7]}
8... Bd6 {[%clk 0:02:43]} 9. Bxd6 {[%clk 0:02:32.2]} 9... Qxd6 {[%clk
0:02:43.9]} 10. Qg3 {[%clk 0:02:29.2]} 10... Qxg3 {[%clk 0:02:35.8]} 11. hxg3
{[%clk 0:02:28.9]} 11... Nf6 {[%clk 0:02:29.3]} 12. a4 {[%clk 0:02:28.2]} 12...
b4 {[%clk 0:02:21.3]} 13. Nd1 {[%clk 0:02:26.8]} 13... O-O-O {[%clk 0:01:54.8]}
14. Ne3 {[%clk 0:02:24.1]} 14... d5 {[%clk 0:01:54.6]} 15. exd5 {[%clk
0:02:23.6]} 15... exd5 {[%clk 0:01:55.5]} 16. Nf4 {[%clk 0:02:17.7]} 16... Nd4
{[%clk 0:01:39.5]} 17. Kd2 {[%clk 0:02:13.8]} 17... h5 {[%clk 0:01:34.6]} 18.
Rhe1 {[%clk 0:02:04.9]} 18... g6 {[%clk 0:01:27.5]} 19. Rad1 {[%clk 0:01:58.3]}
19... c4 {[%clk 0:01:19.1]} 20. Ba2 {[%clk 0:01:56.3]} 20... Bc6 {[%clk
0:01:09.5]} 21. dxc4 {[%clk 0:01:43.1]} 21... dxc4 {[%clk 0:01:04.7]} 22. Bxc4
{[%clk 0:01:34.7]} 22... Nf3+ {[%clk 0:00:52.2]} 23. Kc1 {[%clk 0:01:33.8]}
23... Nxe1 {[%clk 0:00:52.3]} 24. Bxa6+ {[%clk 0:01:31.9]} 24... Bb7 {[%clk
0:00:47.2]} 25. Bxb7+ {[%clk 0:01:27.9]} 25... Kxb7 {[%clk 0:00:48.1]} 26. Rxe1
{[%clk 0:01:27.7]} 26... Rhe8 {[%clk 0:00:45.3]} 27. Re2 {[%clk 0:01:16.6]}
27... Kc6 {[%clk 0:00:42.1]} 28. Kb1 {[%clk 0:01:14.7]} 28... Ne4 {[%clk
0:00:39.1]} 29. Ka2 {[%clk 0:01:13.1]} 29... Nc5 {[%clk 0:00:37.4]} 30. b3
{[%clk 0:00:58.3]} 30... Ne4 {[%clk 0:00:37.5]} 31. Kb2 {[%clk 0:00:56.9]} 31...
Nc3 {[%clk 0:00:37.2]} 32. Re1 {[%clk 0:00:55]} 32... Rd2 {[%clk 0:00:32.3]} 33.
Nd3 {[%clk 0:00:48.3]} 33... Nd5 {[%clk 0:00:20]} 34. Kc1 {[%clk 0:00:40.9]}
34... Rxf2 {[%clk 0:00:14.4]} 35. Nxf2 {[%clk 0:00:32]} 35... Rxe3 {[%clk
0:00:14.7]} 36. Rxe3 {[%clk 0:00:27]} 36... Nxe3 {[%clk 0:00:15.6]} 37. Nd3
{[%clk 0:00:27]} 37... Nxg2 {[%clk 0:00:14.7]} 38. Nxb4+ {[%clk 0:00:27]} 38...
Kd6 {[%clk 0:00:14.6]} 39. a5 {[%clk 0:00:26.4]} 39... g5 {[%clk 0:00:13.7]} 40.
Kd2 {[%clk 0:00:24.6]} 40... h4 {[%clk 0:00:13]} 41. gxh4 {[%clk 0:00:24.6]}
41... gxh4 {[%clk 0:00:13.9]} 42. Ke2 {[%clk 0:00:24.3]} 42... Nf4+ {[%clk
0:00:11.1]} 43. Kf2 {[%clk 0:00:20.7]} 43... h3 {[%clk 0:00:11.6]} 44. Kg3
{[%clk 0:00:20.4]} 44... f5 {[%clk 0:00:07.4]} 45. a6 {[%clk 0:00:19.9]} 45...
Kc7 {[%clk 0:00:07.8]} 46. c4 {[%clk 0:00:18.8]} 46... Ne2+ {[%clk 0:00:04.2]}
47. Kxh3 {[%clk 0:00:18.3]} 47... Nd4 {[%clk 0:00:05.1]} 48. Nd5+ {[%clk
0:00:16]} 48... Kb8 {[%clk 0:00:04.4]} 49. b4 {[%clk 0:00:15.4]} 49... Ka7
{[%clk 0:00:03.3]} 50. b5 {[%clk 0:00:14.5]} 50... Nf3 {[%clk 0:00:01.4]} 51.
Ne7 {[%clk 0:00:13.5]} 51... Ne5 {[%clk 0:00:01.4]} 52. c5 {[%clk 0:00:06]}
52... f4 {[%clk 0:00:01.4]} 53. Kg2 {[%clk 0:00:05.1]} 53... Nd7 {[%clk
0:00:01.4]} 54. c6 {[%clk 0:00:04]} 1-0

[Event "Early-Titled-Tuesday-Blitz-June-18-2024"]
[Site "Chess.com"]
[Date "2024.06.18"]
[Round "5"]
[White "Sanyura"]
[Black "NikolaGry"]
[Result "1-0"]
[WhiteElo "2522"]
[BlackElo "2684"]
[TimeControl "180+1"]
[EndTime "8:58:53 PDT"]
[Termination "Sanyura won by resignation"]

1. e4 {[%clk 0:02:51.7]} 1... d5 {[%clk 0:02:58.8]} 2. exd5 {[%clk 0:02:51.6]}
2... Nf6 {[%clk 0:02:58.5]} 3. Nf3 {[%clk 0:02:51.4]} 3... Nxd5 {[%clk 0:02:58]}
4. d4 {[%clk 0:02:51.8]} 4... Bf5 {[%clk 0:02:56.3]} 5. Be2 {[%clk 0:02:49.7]}
5... e6 {[%clk 0:02:55.8]} 6. a3 {[%clk 0:02:49.2]} 6... Be7 {[%clk 0:02:55.2]}
7. c4 {[%clk 0:02:49.5]} 7... Nb6 {[%clk 0:02:55.1]} 8. Nc3 {[%clk 0:02:50.1]}
8... O-O {[%clk 0:02:54.5]} 9. O-O {[%clk 0:02:50.7]} 9... a5 {[%clk 0:02:54.4]}
10. Bf4 {[%clk 0:02:51]} 10... Nc6 {[%clk 0:02:37.8]} 11. d5 {[%clk 0:02:50.2]}
11... exd5 {[%clk 0:02:26.9]} 12. cxd5 {[%clk 0:02:50.6]} 12... Na7 {[%clk
0:02:26.6]} 13. Rc1 {[%clk 0:02:49.1]} 13... Re8 {[%clk 0:02:09.2]} 14. Nd4
{[%clk 0:02:39.2]} 14... Bg6 {[%clk 0:02:03.5]} 15. Ndb5 {[%clk 0:02:39.7]}
15... Nxb5 {[%clk 0:01:59.6]} 16. Bxb5 {[%clk 0:02:40.6]} 16... Rf8 {[%clk
0:01:58.8]} 17. Qf3 {[%clk 0:02:30]} 17... Bd6 {[%clk 0:01:56.7]} 18. Be3 {[%clk
0:02:25.6]} 18... Nc4 {[%clk 0:01:34.2]} 19. Bxc4 {[%clk 0:02:23.2]} 19... Qh4
{[%clk 0:01:33.3]} 20. g3 {[%clk 0:02:18]} 20... Qxc4 {[%clk 0:01:31.9]} 21.
Rfe1 {[%clk 0:02:17.7]} 21... Rfe8 {[%clk 0:01:28]} 22. Bf4 {[%clk 0:02:13.2]}
22... h6 {[%clk 0:01:12.2]} 23. Bxd6 {[%clk 0:01:57.3]} 23... cxd6 {[%clk
0:01:11.1]} 24. Qf4 {[%clk 0:01:57.8]} 24... Qa6 {[%clk 0:00:54.7]} 25. a4
{[%clk 0:01:54.5]} 25... Bd3 {[%clk 0:00:52.5]} 26. Qd4 {[%clk 0:01:47]} 26...
Qc4 {[%clk 0:00:45.4]} 27. Qb6 {[%clk 0:01:44.7]} 27... Qb4 {[%clk 0:00:38.7]}
28. Rxe8+ {[%clk 0:00:50.7]} 28... Rxe8 {[%clk 0:00:36.9]} 29. Qxb4 {[%clk
0:00:50.9]} 29... axb4 {[%clk 0:00:36.9]} 30. Na2 {[%clk 0:00:51.6]} 30... b3
{[%clk 0:00:27.6]} 31. Nc3 {[%clk 0:00:43.3]} 31... Re5 {[%clk 0:00:23.8]} 32.
Rd1 {[%clk 0:00:42.3]} 32... Bc2 {[%clk 0:00:23.6]} 33. Rd4 {[%clk 0:00:40.8]}
33... Re1+ {[%clk 0:00:19.1]} 34. Kg2 {[%clk 0:00:41.2]} 34... Ra1 {[%clk
0:00:18.8]} 35. Rb4 {[%clk 0:00:41.1]} 35... Ra2 {[%clk 0:00:18.9]} 36. Rxb7
{[%clk 0:00:39.3]} 36... Rxb2 {[%clk 0:00:18.9]} 37. a5 {[%clk 0:00:20.1]} 37...
Bd3 {[%clk 0:00:18.6]} 38. Rb6 {[%clk 0:00:17.3]} 38... Bc4 {[%clk 0:00:15.3]}
39. Rb4 {[%clk 0:00:16.4]} 39... Bd3 {[%clk 0:00:14.7]} 40. Kf3 {[%clk
0:00:13.9]} 40... g5 {[%clk 0:00:13.9]} 41. Ke3 {[%clk 0:00:14.3]} 41... Bc2
{[%clk 0:00:13.9]} 42. a6 {[%clk 0:00:13.7]} 42... Ra2 {[%clk 0:00:12]} 43. Rb6
{[%clk 0:00:12.6]} 43... Ra5 {[%clk 0:00:10.3]} 44. Kd2 {[%clk 0:00:12.7]} 44...
Kg7 {[%clk 0:00:09.7]} 45. Rxd6 {[%clk 0:00:12.8]} 45... Bf5 {[%clk 0:00:09.1]}
46. Rb6 {[%clk 0:00:13.1]} 46... b2 {[%clk 0:00:09.3]} 47. Rxb2 {[%clk
0:00:12.7]} 47... Rxa6 {[%clk 0:00:09.9]} 48. Ke3 {[%clk 0:00:13.1]} 48... Bg6
{[%clk 0:00:09.1]} 49. Kd4 {[%clk 0:00:13.4]} 49... h5 {[%clk 0:00:09.4]} 50.
Nb5 {[%clk 0:00:12.3]} 50... Ra4+ {[%clk 0:00:08.9]} 51. Kc5 {[%clk 0:00:12.1]}
51... Bd3 {[%clk 0:00:09.3]} 52. d6 {[%clk 0:00:12.6]} 52... Rc4+ {[%clk
0:00:09.2]} 53. Kd5 {[%clk 0:00:13.2]} 53... Rc8 {[%clk 0:00:08.9]} 54. Nd4
{[%clk 0:00:13.5]} 54... Bg6 {[%clk 0:00:08]} 55. Rb7 {[%clk 0:00:13.7]} 55...
Rd8 {[%clk 0:00:08.2]} 56. Ne6+ {[%clk 0:00:13.9]} 56... Kf6 {[%clk 0:00:07.3]}
57. Nxd8 {[%clk 0:00:14.8]} 57... Kf5 {[%clk 0:00:07]} 58. Nxf7 {[%clk
0:00:14.5]} 58... Kg4 {[%clk 0:00:06.9]} 59. Ne5+ {[%clk 0:00:14.6]} 1-0